Cogmind - Beta 9.1 @@@ ROGUE MODE // 2019.11.01 @ 22:01:52 Player: MrPainting Result: Destroyed by Y-64 Sentinel with KE Penetrator Performance ------------- Evolutions (3) 1500 Regions Visited (9) 1800 Robots Destroyed (93) 465 Value Destroyed (2479) 2479 Prototype IDs (14) 280 Alien Tech Used (0) 0 Bonus (129) 129 TOTAL SCORE: 6653 Bonus ------- Follower Combat Kills 126 Aligned with FarCom 300 Friendly Fire -297 Cogmind --------- Core Integrity 0/700 Matter 284/300 Energy 73/100 System Corruption 15% Temperature Cool (0) Location -7/Lower Caves Parts ------- Power (2) Propulsion (5) Utility (4) Large Storage Unit Enhanced Optical Array Weapon (2) Scythe Inventory (10) Antimatter Reactor Long-range Sensor Array Advanced Terrain Scanner Microactuators Microactuators Actuator Array Maneuvering Thrusters Shock Absorption System Longsword +1 Peak State ------------ Power Antimatter Reactor Antimatter Reactor Propulsion Light Treads Advanced Treads Medium Treads Gravmag System Utility Large Storage Unit Enhanced Optical Array Improved Melee Analysis Suite Microactuators Weapon Scythe Longsword +1 Inventory Weight Redist. System Long-range Sensor Array Microactuators Actuator Array Maneuvering Thrusters Medium Reactive Plating Shock Absorption System Flak Gun Katana [Rating: 53] Favorites ----------- Power Light Deuterium Engine Engine Light Deuterium Engine Power Core Light Nuclear Core Reactor Antimatter Reactor Propulsion Improved Flight Unit Treads Advanced Treads Wheel Compact Wheel Hover Unit Hover Unit Flight Unit Improved Flight Unit Utility Weight Redist. System Device Weight Redist. System Storage Large Storage Unit Processor Improved Signal Interpreter Protection Medium Reactive Plating Weapon Longsword +1 Energy Gun Medium Laser Energy Cannon Beam Cannon Ballistic Gun Light Assault Rifle Launcher Grenade Launcher Slashing Weapon Longsword +1 Build | -11 -10 -10 -10 -9 -8 -7 -7 -7 -7 ------- Run | Scr Mat Min Exi Min Mat Fac Was Fac Low Slots Evolved 6 | . . . . . 4 2 . . . Power 1 | . . . . . . 1 . . . Propulsion 3 | . . . . . 2 1 . . . Utility 2 | . . . . . 2 . . . . Weapon . | . . . . . . . . . . Parts Attached 110 | 6 19 2 6 2 24 14 9 15 13 Power 19 | 1 3 1 . . 3 8 . 1 2 Engine 14 | 1 3 1 . . 2 6 . . 1 Core 1 | . . . . . 1 . . . . Reactor 4 | . . . . . . 2 . 1 1 Propulsion 28 | 2 6 1 . . 5 1 4 5 4 Treads 6 | . . . . . . . . 2 4 Leg . | . . . . . . . . . . Wheel 2 | 2 . . . . . . . . . Hover 13 | . 6 1 . . . 1 3 2 . Flight 7 | . . . . . 5 . 1 1 . Utility 35 | 1 2 . 4 . 9 3 5 7 4 Device 23 | . 1 . 2 . 6 2 5 6 1 Storage 7 | 1 1 . 2 . 2 1 . . . Processor 3 | . . . . . 1 . . . 2 Hackware . | . . . . . . . . . . Protection 2 | . . . . . . . . 1 1 Artifact . | . . . . . . . . . . Weapon 28 | 2 8 . 2 2 7 2 . 2 3 Energy Gun 9 | 2 3 . . . 3 1 . . . Energy Cannon 2 | . 1 . 1 . . . . . . Ballistic Gun 2 | . 1 . . . . . . . 1 Ballistic Cannon . | . . . . . . . . . . Launcher 6 | . 3 . . 2 1 . . . . Special Weapon . | . . . . . . . . . . Impact Weapon . | . . . . . . . . . . Slashing Weapon 9 | . . . 1 . 3 1 . 2 2 Piercing Weapon . | . . . . . . . . . . Special Melee Weapon . | . . . . . . . . . . Unidentified Prototypes 7 | . . . 3 . 3 1 . . . Parts Lost 24 | . 5 . . . 3 . . 2 14 Power 5 | . 1 . . . 1 . . 1 2 Propulsion 11 | . 1 . . . 1 . . 1 8 Utility 3 | . . . . . 1 . . . 2 Weapon 5 | . 3 . . . . . . . 2 Highest Loss Streak 12 | . 2 . . . 1 . . 2 12 Average Slot Usage (%) 90 | . 95 100 92 100 85 89 92 90 83 Engine 7 | . 13 14 14 14 8 7 7 1 . Reactor 2 | . . . . . . . 7 6 11 Treads 3 | . . . . . . . . 4 18 Wheel 1 | . 12 . . . . . . . . Hover 14 | . 14 28 28 28 8 4 22 24 8 Flight 10 | . . . . . 15 30 15 8 . Device 14 | . 12 14 14 14 19 7 23 23 7 Storage 11 | . 14 14 12 14 11 14 7 7 7 Processor 3 | . . . . . 2 6 . . 12 Energy Gun 2 | . 10 . . . 2 . . . . Energy Cannon 3 | . 5 14 14 14 3 . . . . Launcher 3 | . 10 14 6 14 1 . . . . Slashing Weapon 9 | . . . . . 10 14 7 12 14 Naked Turns . | . . . . . . . . . . Heaviest Build 73 | 11 19 17 17 18 33 42 42 41 73 Greatest Support 70 | 32 38 18 18 18 30 42 47 49 70 Greatest Overweight (x) 5 | 2 1 . . . 2 1 1 1 5 Average Overweight (x) . | . . . . . . . . . . Largest Inventory Capacity 10 | 6 8 8 8 8 10 10 10 10 10 Average Capacity 9 | 5 7 8 7 8 9 10 10 10 10 Most Carried 10 | 5 8 8 7 8 10 10 10 10 10 Average Carried 8 | 3 6 7 6 6 8 9 7 8 9 Final Capacity 10 | 6 8 8 8 8 10 10 10 10 10 Final Carried 10 | 4 8 7 7 7 10 10 7 10 9 Class Distribution -------------------- 40% | Mutant 24% | Sprinter 24% | Scavenger-Mutant 4% | Assassin 3% | Scavenger-Assassin 3% | Scout Dominant Class ---------------- Scavenger-Mutant | -10/Materials Scavenger-Mutant | -10/Mines Scavenger-Mutant | -10/Exiles Scavenger-Mutant | -9/Mines Sprinter | -8/Materials Sprinter | -7/Factory Mutant | -7/Waste Mutant | -7/Factory Mutant | -7/Lower Caves Resources | -11 -10 -10 -10 -9 -8 -7 -7 -7 -7 ----------- Run | Scr Mat Min Exi Min Mat Fac Was Fac Low Matter Collected 1892 | 260 411 240 150 . 250 110 . 295 176 Remotely . | . . . . . . . . . . Salvage Created 3484 | 61 619 99 . . 1517 498 . 140 550 Parts 159 | 1 51 8 . . 64 15 . 6 14 Haulers Intercepted 5 | . 1 . . . 4 . . . . Recyclers Shooed 3 | . 2 . . . . 1 . . . Parts Field Recycled . | . . . . . . . . . . Retrieved Matter . | . . . . . . . . . . Parts Self-Destructed 12 | . . . . . . . . . 12 Prevented 1 | . . . . . . . . . 1 Kills | -11 -10 -10 -10 -9 -8 -7 -7 -7 -7 ------- Run | Scr Mat Min Exi Min Mat Fac Was Fac Low Combat Hostiles Destroyed 54 | . 13 5 . . 19 4 . 2 11 Melee 35 | . . . . . 18 4 . 2 11 Guns 8 | . 8 . . . . . . . . Cannons 4 | . 3 . . . 1 . . . . AOE 7 | . 2 5 . . . . . . . Classes Destroyed 16 | 1 8 . . . 4 1 . . 2 Worker 6 | . 5 . . . 1 . . . . Builder 1 | . 1 . . . . . . . . Tunneler 1 | . 1 . . . . . . . . Hauler 5 | . 1 . . . 4 . . . . Recycler 8 | 1 2 . . . 2 3 . . . Mechanic 1 | . . . . . 1 . . . . Operator 4 | . 3 . . . . . . 1 . Drone 1 | . . . . . 1 . . . . Watcher 11 | . 3 . . . 4 3 . 1 . Swarmer 15 | . 9 3 . . . . . . 3 Grunt 29 | . 4 2 . . 16 3 . . 4 Brawler 2 | . . . . . . . . . 2 Duelist 1 | . . . . . . . . . 1 Sentry 3 | . . . . . 2 . . . 1 Hunter 1 | . . . . . 1 . . . . Programmer 3 | . . . . . . 1 . 2 . Thug 1 | . . 1 . . . . . . . Best Kill Streak 7 | 1 7 3 . . 6 3 . 1 5 Combat Bots Only 5 | . 3 3 . . 4 3 . 1 5 Max Kills in Single Turn 2 | 1 2 2 . . 1 1 . 1 2 Gunslinging . | . . . . . . . . . . Exploded 2 | . 2 2 . . . . . . . Melee 2 | . . . . . 1 1 . 1 2 Uniques/NPCs Destroyed . | . . . . . . . . . . Combat | -11 -10 -10 -10 -9 -8 -7 -7 -7 -7 -------- Run | Scr Mat Min Exi Min Mat Fac Was Fac Low Damage Taken 3715 | . 538 61 . . 564 232 . 217 2103 Core 1071 | . 143 . . . 205 81 . 31 611 Absorbed by Shields . | . . . . . . . . . . Core Remaining (%) 68 | 100 . . . 42 62 . . . . Volleys Fired 92 | 3 66 5 . . 15 . . . 3 Largest 2 | 2 2 1 . . 1 . . . 1 Hottest 100 | 100 90 30 . . 63 . . . 28 Shots Fired 141 | 6 112 5 . . 15 . . . 3 Gun 98 | 6 80 . . . 9 . . . 3 Cannon 25 | . 19 . . . 6 . . . . Launcher 18 | . 13 5 . . . . . . . Special . | . . . . . . . . . . Kinetic 19 | . 16 . . . . . . . 3 Thermal 92 | 6 72 . . . 14 . . . . Explosive 18 | . 13 5 . . . . . . . Electromagnetic 12 | . 11 . . . 1 . . . . Robot Hit Streak 8 | 3 8 2 . . 7 . . . 4 Robot Miss Streak 4 | 1 4 1 . . 1 . . . 3 Penetration Max . | . . . . . . . . . . Secondary Targets . | . . . . . . . . . . Shots Hit Robots 237 | 5 65 2 . . 72 28 . 17 48 Core Hits 114 | 2 38 9 . . 35 9 . 4 17 Critical Hits 5 | . . . . . 3 . . 1 1 Critical Kills 3 | . . . . . 2 . . . 1 Critical Parts Destroyed 2 | . . . . . 1 . . 1 . Melee Attacks 167 | . . . . . 65 33 . 17 52 Impact . | . . . . . . . . . . Slashing 167 | . . . . . 65 33 . 17 52 Piercing . | . . . . . . . . . . Sneak Attacks 16 | . . . . . 10 6 . . . Combat Hostiles 1 | . . . . . 1 . . . . Follow-up Attacks 11 | . . . . . 5 4 . 1 1 Damage Inflicted 9676 | 50 1225 313 . . 3826 1684 . 822 1756 Guns 836 | 50 562 . . . 152 . . . 72 Cannons 331 | . 226 . . . 105 . . . . Explosions 750 | . 437 313 . . . . . . . Melee 7759 | . . . . . 3569 1684 . 822 1684 Ramming . | . . . . . . . . . . Kinetic 126 | . 54 . . . . . . . 72 Thermal 932 | 50 625 . . . 257 . . . . Explosive 750 | . 437 313 . . . . . . . Electromagnetic 109 | . 109 . . . . . . . . Impact . | . . . . . . . . . . Slashing 7759 | . . . . . 3569 1684 . 822 1684 Piercing . | . . . . . . . . . . Highest Corruption 15 | . 1 1 1 1 . 2 12 13 15 Average Corruption 8 | . 1 1 1 1 . 1 10 11 12 Corruption Purged 2 | . . . . . . . . 2 . Effects 79 | . . . 1 . . . 6 41 31 Message Errors 15 | . . . . . . . . 7 8 Matter Fused 17 | . . . . . . . 2 8 7 Heat Flow Errors 12 | . . . . . . . 1 6 5 Energy Discharges 5 | . . . . . . . . 1 4 Data Loss (minor) 7 | . . . 1 . . . 1 4 1 Data Loss (major) 4 | . . . . . . . 1 3 . Alerts 2 | . . . . . . . . 2 . Misdirections 9 | . . . . . . . 1 7 1 Targeting Errors 8 | . . . . . . . . 3 5 Overload Shots . | . . . . . . . . . . Overflow Damage 1101 | . 56 . . . 419 445 . 131 50 Projectiles 10 | . 10 . . . . . . . . Explosions 46 | . 46 . . . . . . . . Melee 1045 | . . . . . 419 445 . 131 50 Knockbacks . | . . . . . . . . . . Impact . | . . . . . . . . . . Kinetic . | . . . . . . . . . . Secondary . | . . . . . . . . . . Self-Inflicted Damage 215 | . 176 39 . . . . . . . Shots 7 | . 6 1 . . . . . . . Rammed . | . . . . . . . . . . Targets Rammed . | . . . . . . . . . . Kicked . | . . . . . . . . . . Crushed . | . . . . . . . . . . Highest Temperature 320 | 72 320 6 . . 124 5 168 262 284 Average Temperature 77 | 39 68 4 . . 55 2 87 96 105 Received Heat Transfer 1062 | . 102 9 . . 324 36 . . 591 Siege Activations . | . . . . . . . . . . Robots Corrupted . | . . . . . . . . . . Combat Hostiles . | . . . . . . . . . . Parts Fried 1 | . 1 . . . . . . . . Impact Corruptions . | . . . . . . . . . . Robots Melted . | . . . . . . . . . . Combat Hostiles . | . . . . . . . . . . Parts Melted 3 | . 2 . . . 1 . . . . Heat Transferred 2224 | 148 1558 . . . 518 . . . . Parts Sabotaged . | . . . . . . . . . . Parts Stolen . | . . . . . . . . . . Parts Stripped . | . . . . . . . . . . Power Chain Reactions . | . . . . . . . . . . Missiles Intercepted . | . . . . . . . . . . Alert | -11 -10 -10 -10 -9 -8 -7 -7 -7 -7 ------- Run | Scr Mat Min Exi Min Mat Fac Was Fac Low Peak Influence 341 | 5 289 211 . . 341 268 24 62 . Average Influence 102 | 2 151 188 . . 113 153 14 21 . Maximum Alert Level 1 | . 1 1 . . 1 1 . . . Low Security (%) 79 | . . . . . . . . . . Level 1 20 | . . . . . . . . . . Level 2 . | . . . . . . . . . . Level 3 . | . . . . . . . . . . Level 4 . | . . . . . . . . . . Level 5 . | . . . . . . . . . . High Security . | . . . . . . . . . . Max Security . | . . . . . . . . . . Squads Dispatched 11 | . 4 . . . 1 3 . 3 . Investigation 5 | . 2 . . . 1 2 . . . Extermination 2 | . . . . . . 1 . 1 . Reinforcement 4 | . 2 . . . . . . 2 . Assault . | . . . . . . . . . . Garrison . | . . . . . . . . . . Intercept . | . . . . . . . . . . Construction Impeded . | . . . . . . . . . . Haulers Reinforced . | . . . . . . . . . . Stealth | -11 -10 -10 -10 -9 -8 -7 -7 -7 -7 --------- Run | Scr Mat Min Exi Min Mat Fac Was Fac Low Distress Signals 6 | . 1 . . . 3 1 . 1 . Communications Jammed . | . . . . . . . . . . Distress Signals . | . . . . . . . . . . Times Spotted 110 | . 33 4 . . 33 8 6 13 13 Peak Tracking Total 7 | . 6 3 . . 7 3 6 6 7 Tactical Retreats 5 | . . . . . 3 . . 1 1 Traps | -11 -10 -10 -10 -9 -8 -7 -7 -7 -7 ------- Run | Scr Mat Min Exi Min Mat Fac Was Fac Low Traps Triggered 5 | . 1 . . . . 4 . . . Indirectly . | . . . . . . . . . . Trap Hack Attempts . | . . . . . . . . . . Triggered . | . . . . . . . . . . Disarmed . | . . . . . . . . . . Reprogrammed . | . . . . . . . . . . Reused . | . . . . . . . . . . Traps Extracted . | . . . . . . . . . . Installed . | . . . . . . . . . . Triggered 2 | . . . . . . . . . 2 Machines | -11 -10 -10 -10 -9 -8 -7 -7 -7 -7 ---------- Run | Scr Mat Min Exi Min Mat Fac Was Fac Low Machines Disabled 5 | . 4 . . . . 1 . . . Max in Single Turn 1 | . 1 . . . . 1 . . . Machines Sabotaged . | . . . . . . . . . . Garrisons Compromised 1 | . . . . . . . . 1 . Overloaded Fab Kills . | . . . . . . . . . . Fab Network Shutdowns . | . . . . . . . . . . Hacking | -11 -10 -10 -10 -9 -8 -7 -7 -7 -7 --------- Run | Scr Mat Min Exi Min Mat Fac Was Fac Low Machines Accessed 27 | . 4 . . . 6 10 . 7 . Terminals 16 | . 3 . . . 5 4 . 4 . Fabricators 3 | . . . . . . 3 . . . Repair Stations 1 | . 1 . . . . . . . . Recycling Units 5 | . . . . . . 3 . 2 . Scanalyzers 2 | . . . . . 1 . . 1 . Garrison Access . | . . . . . . . . . . Total Hacks 93 | . 9 . . . 47 24 . 13 . Successful 57 | . 4 . . . 40 7 . 6 . Failed 35 | . 4 . . . 7 17 . 7 . Catastrophic 9 | . . . . . 2 2 . 5 . Database Lockouts 5 | . 5 . . . . . . . . Manual 44 | . 10 . 1 . 19 9 . 5 . Terminals 50 | . 6 . . . 27 10 . 7 . Fabricators 9 | . . . . . . 9 . . . Repair Stations 3 | . 3 . . . . . . . . Recycling Units 8 | . . . . . . 5 . 3 . Scanalyzers 23 | . . . . . 20 . . 3 . Garrison Access . | . . . . . . . . . . Terminal Hacks 11 | . 2 . . . 8 . . 1 . Part Schematic 1 | . . . . . . . . 1 . Prototype ID Bank 4 | . 2 . . . 2 . . . . Branch Access Points 2 | . . . . . 2 . . . . Alert Level 2 | . . . . . 2 . . . . Locate Traps 2 | . . . . . 2 . . . . Fabricator Hacks 3 | . . . . . . 3 . . . Load Schematic 1 | . . . . . . 1 . . . Build 2 | . . . . . . 2 . . . Repair Station Hacks 2 | . 2 . . . . . . . . Scan Component 1 | . 1 . . . . . . . . Repair 1 | . 1 . . . . . . . . Recycling Unit Hacks 3 | . . . . . . 2 . 1 . Report Inventory 1 | . . . . . . 1 . . . Retrieve Components 2 | . . . . . . 1 . 1 . Scanalyzer 22 | . . . . . 20 . . 2 . Insert Component 10 | . . . . . 9 . . 1 . Analyze 12 | . . . . . 11 . . 1 . Garrison Access Hacks . | . . . . . . . . . . Unauthorized Hacks 38 | . . . . . 25 8 . 5 . Terminals 16 | . . . . . 12 2 . 2 . Track 4 | . . . . . 4 . . . . Assimilate 3 | . . . . . 3 . . . . Botnet 9 | . . . . . 5 2 . 2 . Fabricators . | . . . . . . . . . . Repair Stations . | . . . . . . . . . . Recycling Units . | . . . . . . . . . . Scanalyzers . | . . . . . . . . . . Garrison Access . | . . . . . . . . . . Data Cores Recovered 2 | . 1 . . . . . . 1 . Used 2 | . 1 . . . . . . 1 . Hacking Detections 24 | . 3 . . . 6 10 . 5 . Full Trace Events 4 | . 1 . . . 1 2 . . . Feedback Events 1 | . 1 . . . . . . . . Corruption 1 | . 1 . . . . . . . . Feedback Blocked . | . . . . . . . . . . Robot Schematics Acquired . | . . . . . . . . . . Robots Built . | . . . . . . . . . . Matter . | . . . . . . . . . . Time . | . . . . . . . . . . Total Robot Build Rating . | . . . . . . . . . . Part Schematics Acquired 10 | . . . . . 8 . . 2 . Parts Built 4 | . . . . . . 4 . . . Matter 380 | . . . . . . 380 . . . Time 94 | . . . . . . 94 . . . Total Part Build Rating 20 | . . . . . . 20 . . . Parts Repaired 1 | . 1 . . . . . . . . Time 26 | . 26 . . . . . . . . Parts Recycled . | . . . . . . . . . . Recycled Matter . | . . . . . . . . . . Retrieved Matter . | . . . . . . . . . . Retrieved Components 4 | . . . . . . 1 . 3 . Parts Scanalyzed 9 | . . . . . 8 . . 1 . Part Schematics Acquired 9 | . . . . . 8 . . 1 . Parts Damaged 1 | . . . . . . . . 1 . Bothacking | -11 -10 -10 -10 -9 -8 -7 -7 -7 -7 ------------ Run | Scr Mat Min Exi Min Mat Fac Was Fac Low Used RIF Installer . | . . . . . . . . . . Robots Hacked . | . . . . . . . . . . Non-combat . | . . . . . . . . . . Combat . | . . . . . . . . . . Robot Hacks Applied . | . . . . . . . . . . Relay Couplers Released . | . . . . . . . . . . Robots Rewired . | . . . . . . . . . . Allies Hacked . | . . . . . . . . . . Hacks Repelled . | . . . . . . . . . . Allies | -11 -10 -10 -10 -9 -8 -7 -7 -7 -7 -------- Run | Scr Mat Min Exi Min Mat Fac Was Fac Low Total Allies 9 | . . 5 . . . 3 1 . . Largest Group 3 | . . 3 3 3 3 3 1 . . Highest-Rated Group 93 | . . 40 40 40 40 93 31 . . Highest-Rated Ally 31 | . . 31 16 16 16 31 31 . . Total Orders . | . . . . . . . . . . Ally Attacks 57 | . . 3 . . 9 36 9 . . Total Damage 947 | . . 40 . . 79 658 170 . . Kills 3 | . . . . . . 3 . . . Allies Corrupted . | . . . . . . . . . . Allies Melted . | . . . . . . . . . . Intel | -11 -10 -10 -10 -9 -8 -7 -7 -7 -7 ------- Run | Scr Mat Min Exi Min Mat Fac Was Fac Low Robot Analysis Total . | . . . . . . . . . . Derelict Logs Recovered 3 | . . . . 2 . . . . 1 Drone Launches 1 | . . . 1 . . . . . . Drone Recoveries . | . . . . . . . . . . Exploration | -11 -10 -10 -10 -9 -8 -7 -7 -7 -7 ------------- Run | Scr Mat Min Exi Min Mat Fac Was Fac Low Turns Passed 4999 | 92 781 157 232 181 964 985 110 908 589 Spaces Moved 4757 | 64 630 164 300 205 884 1329 151 691 339 Core 37 | 34 . . . . . . 1 . 2 Treads 256 | . . . . . . . . . 256 Legs . | . . . . . . . . . . Wheels 244 | 30 214 . . . . . . . . Hover 2353 | . 416 164 300 205 346 . 150 691 81 Flight 1867 | . . . . . 538 1329 . . . Fastest Speed 26 | 50 56 56 56 56 26 26 52 52 68 Average Speed 59 | 103 79 56 56 56 60 26 52 66 135 Slowest Speed 300 | 150 120 56 56 56 180 96 100 116 300 Overloaded Moves . | . . . . . . . . . . Propulsion Burnouts . | . . . . . . . . . . Robots Hopped 7 | . . . . . 5 2 . . . Cave-ins Triggered . | . . . . . . . . . . Exploration Rate (%) 45 | 5 59 26 70 51 45 33 95 17 52 Regions Visited 9 Branch Regions 4 Pre-discovered Areas 1 | . . . . 1 . . . . . Known Exits Taken 1 | . . . . . 1 . . . . Unknown Exits Taken 6 | 1 1 1 1 1 . . . 1 . Scrap Searched 3 | . . 1 . . . . . . 2 Spaces Dug . | . . . . . . . . . . Terrain Destroyed 139 | . 112 27 . . . . . . . Melee . | . . . . . . . . . . Projectile . | . . . . . . . . . . AOE 139 | . 112 27 . . . . . . . Actions | -11 -10 -10 -10 -9 -8 -7 -7 -7 -7 --------- Run | Scr Mat Min Exi Min Mat Fac Was Fac Low Total 6635 | 84 803 224 365 271 1232 1937 180 1125 414 Wait 1327 | . 50 49 47 63 213 511 14 376 4 Move 4735 | 63 629 163 299 204 873 1325 150 690 339 Hop 7 | . . . . . 5 2 . . . Pick Up 93 | 11 20 2 4 1 18 16 1 16 4 Fast Attach 27 | . 4 . 3 . 12 5 . . 3 Attach 28 | 6 3 . . 2 3 5 . 7 2 Detach 11 | . . . 1 1 3 4 1 1 . Swap 55 | . 12 2 3 . 9 4 9 8 8 Drop 90 | 1 19 3 8 . 21 19 5 11 3 Fire 92 | 3 66 5 . . 15 . . . 3 Melee 152 | . . . . . 60 28 . 16 48 Ram . | . . . . . . . . . . Kick . | . . . . . . . . . . Crush . | . . . . . . . . . . Escape Stasis 18 | . . . . . . 18 . . . Rewire . | . . . . . . . . . . Trap . | . . . . . . . . . . Miscellaneous . | . . . . . . . . . . Route ------- -11/Scrapyard -10/Materials (discovered 2 exits: [*Mat] / [*Min]) -10/Mines (discovered 2 exits: [*Mat] / *Exi) -10/Exiles -9/Mines -8/Materials -7/Factory -7/Waste -7/Factory -7/Lower Caves History --------- Turn | Location | Event 6 | -11/Scrapyard | Discovered new exit (range 15) 93 | -11/Scrapyard | Entered Materials 171 | -10/Materials | Discovered new exit (range 8) 310 | -10/Materials | Build established: Mutant 621 | -10/Materials | Build established: Scavenger-Mutant 624 | -10/Materials | Discovered new exit (range 10) 694 | -10/Materials | Central database locked down 746 | -10/Materials | Core integrity fell below 50% 833 | -10/Materials | Repaired Hover Unit 874 | -10/Materials | Entered Mines 931 | -10/Mines | Discovered new exit (range 8) 990 | -10/Mines | Assembled infested the area 991 | -10/Mines | Assisted by bots powering up and referring to "LRC-V3" 1010 | -10/Mines | Deemed a non-threat by the Exiles lab entrance 1010 | -10/Mines | Discovered new exit (range 5) 1031 | -10/Mines | Entered Exiles 1031 | -10/Exiles | Accompanied by 3 allies 1046 | -10/Exiles | Met 8R-AWN 1055 | -10/Exiles | Met EX-HEX 1103 | -10/Exiles | Met EX-BIN 1110 | -10/Exiles | Aligned with FarCom system 1111 | -10/Exiles | Given EX-Vault access code 1125 | -10/Exiles | Opened EX-Vault 1128 | -10/Exiles | Found Prototype Device 1128 | -10/Exiles | Identified Supersonic Drone Bay 1133 | -10/Exiles | Found Prototype Device 1133 | -10/Exiles | Identified PSU Rigger 1147 | -10/Exiles | Found Prototype Slashing Weapon 1148 | -10/Exiles | Identified Longsword +1 1162 | -10/Exiles | Warned to stay clear of 0b10 Research branches 1178 | -10/Exiles | Met EX-DEC 1209 | -10/Exiles | Discovered new exit (range 14) 1263 | -10/Exiles | Left Exiles lab with Longsword +1 1263 | -10/Exiles | Entered Mines 1263 | -9/Mines | Accompanied by 4 allies 1278 | -9/Mines | Received a Rocket Launcher from a helpful Derelict 1286 | -9/Mines | Learned Materials terminal intel 1419 | -9/Mines | Discovered new exit (range 11) 1444 | -9/Mines | Entered Materials 1444 | -8/Materials | Accompanied by 4 allies 1444 | -8/Materials | Evolved 4 slots: Propulsion x2, Utility x2 1445 | -8/Materials | Loaded intel: 11 terminal locations 2271 | -8/Materials | Discovered new exit (range 16) 2275 | -8/Materials | Identified exit to Factory 2408 | -8/Materials | Entered Factory 2408 | -7/Factory | Evolved 2 slots: Power x1, Propulsion x1 2441 | -7/Factory | Build established: Sprinter 2816 | -7/Factory | Allied Derelicts emerged from ambush trap array 3166 | -7/Factory | Fabricated Antimatter Reactor (x2) 3207 | -7/Factory | Fabricated Airjet (x2) 3393 | -7/Factory | Manually triggered Chute Trap 3393 | -7/Factory | Sucked down chute 3393 | -7/Factory | Entered Waste 3394 | -7/Waste | Met a frightened Derelict 3408 | -7/Waste | EMP discharged 3408 | -7/Waste | System corruption reached 10% 3429 | -7/Waste | Spotted C-40 Crusher 3436 | -7/Waste | Spotted C-40 Crusher 3453 | -7/Waste | Spotted C-40 Crusher 3455 | -7/Waste | Spotted C-40 Crusher 3459 | -7/Waste | Spotted C-40 Crusher 3475 | -7/Waste | Spotted C-40 Crusher 3494 | -7/Waste | Discovered new exit (range 12) 3503 | -7/Waste | Entered Factory 3677 | -7/Factory | Build established: Mutant 4377 | -7/Factory | Discovered new exit (range 10) 4411 | -7/Factory | Entered Lower Caves 4468 | -7/Lower Caves | Learned Factory terminal intel 4480 | -7/Lower Caves | Attracted the attention of an 0b10 checkpoint 4872 | -7/Lower Caves | Attracted the attention of an 0b10 outpost 4957 | -7/Lower Caves | Core integrity fell below 50% 4978 | -7/Lower Caves | Core integrity fell below 20% 5000 | -7/Lower Caves | Destroyed by Y-64 Sentinel with KE Penetrator Last Messages --------------- 04975_ Penetrated by Slug. 04978_ Acquired Lgt. Treads. 04980_ Penetrated by Slug. 04984_ System corrupted: Matter fused (-6). 04985_ Slug penetrates Wall. 04986_ System corrupted: Scythe targeting data glitched. 04987_ Unknown Energy Gun fries itself beyond repair. 04987_ Penetrated by Slug. 04988_ Destroyed Wave Gun. 04990_ Penetrated by Slug. 04990_ Critical hit. 04990_ Lgt. Treads destroyed. 04992_ Penetrated by Slug. 04992_ Lgt. Treads destroyed. 04994_ Penetrated by Slug. 04996_ System corrupted: Scythe targeting data glitched. 04996_ Penetrated by Slug. 04998_ Slug penetrates Wall. 05000_ System corrupted: Energy discharge (-27). 05000_ Penetrated by Slug. Map ----- +----------------------------------------------------+ | ??????????????? ##??#""???# #??## # | | ??????????????? #?#""?"?# #?## # | | ??????????????? ###" "?# #?? #? | | ????????????????# #" "## ###??# #?? | | ????????????????# "" "" #### #??? | | ?????????????????# #??? | | ?????????????????# #### | | ?????????????????# ### % | | ????????????????# ## #?### ! | | ??????????? ?## ##???# #### | | ?????????? ? ######?#### | | ??????????? ### ##????# ##??## | | ?????????????# ?????????# #### ## ### | | ?????????????#??????????### ## ### ##?? | | ???????????????????????## #? ?? | | ??????????????????????## #?######? | | ??????????????????????# ! #### #???????? | | ??????????????????????# #% ##??# # #??? | | ??????????????????##??##??# ##??# +??? | | ??????????????????# #????## #### + ? | | ???????????????????# #??## # " | | ????????????????????# #?# #### # #??? | | ?????????????????????# # #######??## ####??? | | ?????????????????????##;# ##?????????# ????? | | ?????????????????????#! # #????????? ???? | | ?????????????????????#%%%@# #????????? ## #??? | | ?????????????????????##%%%Y##????????? ##?####??? | | ??????????????????????######??????????###????????? | | ?????????????????????????????????????????????????? | | ?????????????????????????????????????????????????? | | ?????????????????????????????????????????????????? | | ?????????????????????????????????????????????????? | | ?????????????????????????????????????????????????? | | ?????????????????????????????????????????????????? | | ?????????????????????????????????????????????????? | | ?????????????????????????????????????????????????? | | ?????????????????????????????????????????????????? | | ?????????????????????????????????????????????????? | | ?????????????????????????????????????????????????? | | ?????????????????????????????????????????????????? | | ?????????????????????????????????????????????????? | | ?????????????????????????????????????????????????? | | ?????????????????????????????????????????????????? | | | | | | | | | | | | | | | +----------------------------------------------------+ Best States ------------- Heat Dissipation 50 Energy Generation 37 Energy Capacity 580 Matter Stores 300 Matter Capacity 300 Sight Range 22 Robot Scan Range 20 Terrain Scan Range 20 Terrain Scan Density 10 Additional Mass Support 18 Armor Coverage 225 Resistance: KI 30 Melee Speed Boost 40 Evasion (%) 64 Melee Accuracy 6 Recoil Reduction 3 Item Schematics ----------------- Airjet | -8/Materials | Scanalyzed Adv. Sensor Array | -8/Materials | Scanalyzed Hcp. Matter Pod | -8/Materials | Scanalyzed Adv. Heat Sink | -8/Materials | Scanalyzed Actuator Array | -8/Materials | Scanalyzed Rocket Launcher | -8/Materials | Scanalyzed Maneuvering Thrusters | -8/Materials | Scanalyzed Imp. Flight Unit | -8/Materials | Scanalyzed Imp. Maneuvering Thrusters | -7/Factory | Hacked System Backup Module | -7/Factory | Scanalyzed Robot Schematics ------------------ None Fabricated ------------ Antimatter Reactor | x2 | -7/Factory | Preloaded Airjet | x2 | -7/Factory Alien Tech Used ----------------- None Achievements -------------- Ambidextrous Deadly Force Watch This! Challenges ------------ None Game ------ Seed EtherialActuatorMagmablaster Manual? 0 Play Time 01:36:13 Cumulative 92.0 hours Start 2019.11.01 @ 20:24:43 End 2019.11.01 @ 22:01:52 Sessions 1 Manual Loads 0 Difficulty Rogue Special Mode None Game No. 143 Rogue 143 Adventurer 0 Explorer 0 Win Type - Total 0 Types 0/0/0/0/0/0/0 Lore% 30 Gallery% 44 Achievement% 32 Wizard Run 0 Options --------- ASCII 0 Keyboard 0 Movement Mouse Keybinds 0 Fullscreen 1 Font 18/SmallcapsGlow Map View 76x50 Tactical HUD 1 Map Filters NONE Filters NONE Steam 1 RUN: 9601a530-1ffa-4c7a-ac1e-b395952b8b28